[Event "Czech Championship 2022"]
[Site "Usti nad Labem"]
[Date "2022.05.20"]
[Round "7.15"]
[White "Hrbek, Stepan"]
[Black "Jun, Rudolf"]
[Result "0-1"]
[ECO "B23"]
[WhiteElo "2303"]
[BlackElo "2183"]
[Annotator "TA"]
[PlyCount "102"]
[EventDate "2022.05.12"]
[EventType "swiss"]
[EventCountry "CZE"]
[SourceTitle "playchess.com"]
[Source "ChessBase"]
[SourceQuality "1"]
[TimeControl "40/5400+30:1800+30"]

{[%evp 12,102,42,32,30,25,28,23,53,14,24,17,16,12,23,20,12,22,31,12,23,20,27,0,0,0,0,-17,0,0,31,-38,31,31,38,41,34,17,36,0,23,0,0,0,0,-18,-17,-21,0,-16,-18,-10,-16,-53,0,0,0,0,0,0,0,-54,-39,-43,-48,-31,-8,-8,-8,-12,-17,-49,-52,-777,-739,-777,-775,-761,-753,-772,-762,-714,-629,-703,-631,-676,-1147,-869,-874,-1879,-799,-685,-664]} 1. e4 {[%emt 0:00:10]} c5 {[%emt 0:00:24]} 2. Nc3 {[%emt 0:00:14]} Nc6 {[%emt 0:01:02]} 3. Bb5 {[%emt 0:00:08]} g6 {[%emt 0:00:55]} 4. Bxc6 {[%emt 0:00:13]} dxc6 {[%emt 0:00:27]} 5. d3 {[%emt 0:00:17]} Bg7 {[%emt 0:00:17]} 6. Be3 {[%emt 0:00:21]} b6 {[%emt 0:00:59]} 7. Qd2 {[%emt 0:01:00]} e5 {[%emt 0:03:28] B23: Closed Sicilian: Lines without g3.} 8. f4 {[%emt 0:00:34]} exf4 {[%emt 0:01:40]} 9. Bxf4 {[%emt 0:00:08]} Bg4 {[%emt 0:06:16] White has an edge.} 10. Nf3 {[%emt 0:08:45]} Nf6 {[%emt 0:07:46] [#]} 11. Bh6 $146 {[%emt 0:01:01]} ({Predecessor:} 11. Ne5 O-O 12. O-O Be6 13. Nxc6 Qd7 14. Bg5 Nxe4 15. Nxe4 Qxc6 16. Nf6+ Kh8 17. Qf4 {1-0 (25) Mitkov,N (2552)-Smetankin,S (2485) Chicago 2006}) 11... Bxh6 {[%emt 0:01:04]} 12. Qxh6 {[%emt 0:00:09]} Bxf3 {[%emt 0:01:23]} 13. gxf3 {[%emt 0:00:06]} Nh5 {[%emt 0:00:38]} 14. O-O-O {[%emt 0:14:45]} Qf6 {[%emt 0:03:40]} 15. Qe3 {[%emt 0:00:55]} Qf4 {[%emt 0:03:16]} 16. Rde1 {[%emt 0:00:20][%cal Bd1e1,Be1e3,Be3f3][%mdl 32]} O-O-O {[%emt 0:02:42]} 17. Kb1 {[%emt 0:04:01]} Qxe3 {[%emt 0:02:02]} 18. Rxe3 {[%emt 0:00:39]} Rhe8 {[%emt 0:00:17]} 19. Ne2 {[%emt 0:10:10]} Rd7 {[%emt 0:03:15]} 20. f4 {[%emt 0:01:11]} f5 {[%emt 0:07:57]} 21. h4 {[%emt 0:08:25]} ({White should try} 21. e5 $14) 21... Rde7 {[%emt 0:06:41]} ({Better is} 21... fxe4 $15 22. dxe4 Rde7) 22. e5 $14 {[%emt 0:00:14]} Kd7 {[%emt 0:04:21]} 23. Rf3 {[%emt 0:01:54]} Ke6 {[%emt 0:00:54]} 24. Ng1 {[%emt 0:07:22]} Rd8 {[%emt 0:02:39]} 25. Nh3 {[%emt 0:01:24]} h6 {[%emt 0:00:21]} 26. Rg1 {[%emt 0:06:40]} Kf7 {[%emt 0:01:40]} 27. b3 {[%emt 0:00:09]} b5 {[%emt 0:01:19]} 28. c3 {[%emt 0:08:04]} a5 {[%emt 0:02:05]} 29. Kc2 {[%emt 0:00:51]} Ra8 {[%emt 0:02:23]} 30. a4 {[%emt 0:02:49]} Rb8 {[%emt 0:05:38] White must now prevent ...bxa4.} 31. axb5 {[%emt 0:02:12]} cxb5 {[%emt 0:01:00]} 32. Nf2 {[%emt 0:03:44]} a4 {[%emt 0:05:54]} (32... Ra7 $15) 33. bxa4 $1 $11 {[%emt 0:03:22]} bxa4 {[%emt 0:00:42]} 34. Ra1 {[%emt 0:00:42]} g5 {[%emt 0:02:47]} 35. fxg5 {[%emt 0:02:01]} Rxe5 {[%emt 0:01:22]} 36. Ne4 {[%emt 0:06:32]} (36. Kd1 $11 Rbe8 37. Rxa4 hxg5 38. hxg5) 36... Kg6 $15 {[%emt 0:01:25]} 37. Nd2 {[%emt 0:00:23]} hxg5 {[%emt 0:00:38]} 38. hxg5 {[%emt 0:00:06]} Re2 {[%emt 0:03:03] Inhibits Rf2.} (38... Ra8 $5 {[%cal Re5e2]}) 39. Rxa4 {[%emt 0:02:30]} Kxg5 {[%emt 0:03:07]} 40. Rf1 {[%emt 0:02:55]} Ng3 {[%emt 0:04:54]} 41. Rf3 {[%emt 0:08:01]} Rg2 {[%emt 0:01:37]} 42. Raf4 $2 {[%emt 0:00:40][%mdl 8192] [#] Loses the game.} (42. Ra7 $15) 42... Ra8 $19 {[%emt 0:01:45] Black is clearly winning.} 43. Rxg3+ {[%emt 0:13:39]} Rxg3 {[%emt 0:00:12][%mdl 4096] Endgame KRR-KRN} 44. Rf2 {[%emt 0:00:04]} Kg4 {[%emt 0:01:14]} 45. Kb3 {[%emt 0:00:05]} Rxd3 {[%emt 0:01:12]} 46. Kc4 {[%emt 0:00:14]} Re3 {[%emt 0:02:19]} 47. Nf1 {[%emt 0:00:15]} Re4+ {[%emt 0:00:23]} 48. Kxc5 {[%emt 0:00:08]} Rc8+ {[%emt 0:01:08]} 49. Kd5 {[%emt 0:00:07]} Rxc3 {[%emt 0:01:02] [#] Hoping for ...Rd3+.} 50. Nh2+ {[%emt 0:00:05]} Kg5 {[%emt 0:01:23]} (50... Kg3 $142 51. Rxf5 Re1) 51. Nf3+ {[%emt 0:00:06]} Kf6 {[%emt 0:00:37] Weighted Error Value: White=0.40/Black=0.22 (precise)} 0-1

[Event "Czech Championship 2022"]
[Site "Usti nad Labem"]
[Date "2022.05.20"]
[Round "7.16"]
[White "Delgerdalai, Bayarjavkhlan"]
[Black "Gnojek, Petr"]
[Result "0-1"]
[ECO "B07"]
[WhiteElo "2119"]
[BlackElo "2302"]
[Annotator "TA"]
[PlyCount "106"]
[EventDate "2022.05.12"]
[EventType "swiss"]
[EventCountry "CZE"]
[SourceTitle "playchess.com"]
[Source "ChessBase"]
[SourceQuality "1"]
[TimeControl "40/5400+30:1800+30"]

{[%evp 9,106,40,62,35,66,58,77,66,58,36,57,23,6,22,24,22,62,77,59,62,65,28,43,32,55,31,52,45,67,47,49,16,14,10,31,-17,-24,-121,-119,-164,-107,-97,-111,-144,-114,-154,-130,-246,-161,-171,-150,-195,-157,-275,-265,-264,-273,-347,-350,-350,-341,-402,-396,-399,-398,-409,-409,-533,-540,-541,-455,-482,-454,-689,-667,-638,-641,-29981,-6215,-29982,-29983,-29956,-29963,-29965,-29965,-5406,-5393,-29991,-29984,-29983,-3525,-2028,-2028,-1455,-1328,-29988,-6203,-29997,-29998]} 1. e4 {[%emt 0:00:06]} d6 {[%emt 0:00:09]} 2. d4 {[%emt 0:01:01]} Nf6 {[%emt 0:00:09]} 3. Nc3 {[%emt 0:00:15]} c6 {[%emt 0:00:20]} 4. Be3 {[%emt 0:01:05]} Nbd7 {[%emt 0:05:33]} 5. Nf3 {[%emt 0:07:28]} Qa5 {[%emt 0:07:48]} 6. Qd2 {[%emt 0:03:12] B07: Pirc Defence: Miscellaneous Systems.} b5 {[%emt 0:00:52]} 7. Bd3 $1 {[%emt 0:02:28]} e5 {[%emt 0:02:08]} 8. O-O {[%emt 0:02:26][%cal Ob2b4] White is better.} Be7 {[%emt 0:01:53] [#]} 9. a3 $146 {[%emt 0:05:01]} ({Predecessor:} 9. Rad1 O-O 10. dxe5 dxe5 11. Nd5 Qd8 12. Nxf6+ Bxf6 13. Qe2 Qe7 14. Nd2 a6 15. a4 {0-1 (41) Van der Hoorn,M (2133)-Bennett,H (2093) Wanganui 2005}) 9... Bb7 {[%emt 0:02:59]} 10. b4 {[%emt 0:03:33]} Qc7 {[%emt 0:00:37]} 11. Ne2 {[%emt 0:08:53]} O-O {[%emt 0:24:46]} 12. Ng3 {[%emt 0:02:23]} Rfe8 {[%emt 0:00:17]} 13. dxe5 {[%emt 0:06:26]} Nxe5 {[%emt 0:10:21]} 14. Nxe5 {[%emt 0:03:38]} dxe5 {[%emt 0:00:03]} 15. Nf5 {[%emt 0:00:50]} Bf8 $1 {[%emt 0:05:54]} 16. Bc5 {[%emt 0:06:40] Qg5 is the strong threat.} Re6 {[%emt 0:04:47]} 17. Rae1 {[%emt 0:07:53]} Bxc5 {[%emt 0:06:17]} 18. bxc5 {[%emt 0:00:09]} Ne8 {[%emt 0:00:03]} 19. Re3 {[%emt 0:01:08]} Rd8 {[%emt 0:01:31]} 20. h4 {[%emt 0:02:04][%cal Bh2h4,Bh4h5][%mdl 32]} Bc8 {[%emt 0:06:06]} 21. h5 {[%emt 0:07:08]} Rf6 {[%emt 0:01:13]} 22. Qe2 {[%emt 0:05:17]} (22. a4 $14 {deserves consideration.}) 22... g6 {[%emt 0:02:26]} 23. Rg3 {[%emt 0:01:12]} (23. g4 $11 {keeps the balance.}) 23... Kf8 $1 $17 {[%emt 0:01:16]} 24. Nh4 {[%emt 0:06:44]} Ng7 {[%emt 0:02:26]} (24... Rf4 $19 25. Nf3 Nf6 26. hxg6 hxg6) 25. hxg6 {[%emt 0:00:55]} hxg6 {[%emt 0:00:17]} 26. Re3 {[%emt 0:07:59]} Qe7 {[%emt 0:01:50]} 27. g3 {[%emt 0:00:56]} Bh3 {[%emt 0:02:30]} 28. Ng2 {[%emt 0:01:25]} (28. Re1 $17 {is a better defense.}) 28... Qxc5 {[%emt 0:00:28]} 29. Kh2 {[%emt 0:02:24]} Bc8 {[%emt 0:01:08]} 30. f4 {[%emt 0:00:28]} Ke7 {[%emt 0:00:27]} 31. f5 {[%emt 0:00:45]} (31. Qe1 $17) 31... Rh8+ $19 {[%emt 0:02:01]} ({Weaker is} 31... gxf5 32. exf5 Rh6+ 33. Nh4 $17) 32. Kg1 {[%emt 0:00:05]} gxf5 {[%emt 0:01:16]} 33. exf5 {[%emt 0:00:41]} Nxf5 {[%emt 0:00:10]} 34. Bxf5 {[%emt 0:00:30]} Rxf5 {[%emt 0:00:04]} ({Don't go for} 34... Bxf5 $2 35. Qf2 Rhh6 36. Ree1 Qxf2+ 37. Rxf2 $19) 35. Rf2 {[%emt 0:00:58]} Rxf2 {[%emt 0:03:44]} 36. Qxf2 {[%emt 0:01:15]} Be6 {[%emt 0:01:14]} 37. Nh4 {[%emt 0:00:28]} Rd8 {[%emt 0:00:50] And now ...Rd1+ would win.} 38. Kh2 {[%emt 0:02:32]} Rd1 {[%emt 0:00:33]} 39. Ng2 {[%emt 0:00:54]} Qd4 {[%emt 0:01:15] aiming for ...Rd2.} 40. c3 {[%emt 0:00:37]} Qg4 {[%emt 0:01:27][%csl Ge6][%cal Rg4h3]} 41. Ne1 {[%emt 0:00:54]} (41. Re1 $142 Qh5+ 42. Nh4) 41... Qh5+ {[%emt 0:00:47]} 42. Kg1 {[%emt 0:00:27]} Bd5 {[%emt 0:00:36][%csl Gd5][%cal Rh5h1]} 43. Kf1 {[%emt 0:00:19]} f6 {[%emt 0:01:34]} (43... Ra1 $142 44. Rd3 Bc4 45. Qc5+ Kf6 46. Qd6+ Kg7 47. Kf2 Qh2+ 48. Ng2 Bxd3 49. Qxe5+ Kh7 50. c4 Rf1+ 51. Ke3 Qxg2 52. Qh5+ Kg7 53. Qg5+ Bg6 54. Qe5+ Kh7 55. Qf4 Rd1 56. Qxf7+ Bxf7 57. Kf4 Rd4+ 58. Kf5 Qe4+ 59. Kf6 Qe6+ 60. Kg5 Qg6#) 44. g4 {[%emt 0:02:03]} Qh1+ {[%emt 0:01:40]} 45. Ke2 {[%emt 0:00:29]} Ra1 {[%emt 0:00:17]} 46. Qg3 {[%emt 0:01:11]} Bc4+ {[%emt 0:01:18]} 47. Kd2 {[%emt 0:01:10]} Qd5+ {[%emt 0:00:07]} 48. Nd3 {[%emt 0:00:18]} Bxd3 {[%emt 0:00:08]} 49. Rxd3 {[%emt 0:00:09]} Ra2+ {[%emt 0:00:20]} (49... Qe4 $142 50. Rd7+ Kxd7 51. Qd3+ Qxd3+ 52. Kxd3 Rxa3 53. Kd2 Ra4 54. Ke3 Rxg4 55. Kf2 a5 56. Kf3 f5 57. Kf2 a4 58. Ke3 a3 59. c4 bxc4 60. Kf3 a2 61. Ke3 a1=Q 62. Kf2 Qb2+ 63. Kf1 c3 64. Ke1 Rg1#) 50. Ke3 {[%emt 0:00:27]} Qc5+ {[%emt 0:03:08]} 51. Ke4 {[%emt 0:00:53]} Qc4+ {[%emt 0:02:09]} 52. Kf5 {[%emt 0:01:00] [#]} Qg8 {[%emt 0:01:15]} (52... Rf2+ $142 $3 {[%mdl 512]} 53. Kg6 Qg8+ 54. Kh6 {[#]} Rh2+ $3 {[%mdl 512]} 55. Qxh2 Qh8+ 56. Kg6 Qxh2 57. Rd8 Kxd8 58. Kxf6 e4 59. c4 Qf4+ 60. Kg6 Ke7 61. g5 e3 62. Kh6 e2 63. Kh5 e1=Q 64. Kg6 Qeh4 65. cxb5 Qfxg5#) 53. Qh4 {[%emt 0:01:19] [#]} Rf2+ $3 {[%emt 0:00:11][%mdl 512] Weighted Error Value: White=0.68/Black=0.34} 0-1

[Event "Czech Championship 2022"]
[Site "Usti nad Labem"]
[Date "2022.05.20"]
[Round "7.17"]
[White "Serrano Salvador, Eduardo"]
[Black "Hladky, Tadeas"]
[Result "1-0"]
[ECO "E48"]
[WhiteElo "2286"]
[BlackElo "2119"]
[Annotator "TA"]
[PlyCount "60"]
[EventDate "2022.05.12"]
[EventType "swiss"]
[EventCountry "CZE"]
[SourceTitle "playchess.com"]
[Source "ChessBase"]
[SourceQuality "1"]
[TimeControl "40/5400+30:1800+30"]

{[%evp 16,60,26,14,17,0,0,3,0,0,2,5,19,21,27,0,0,-2,32,21,12,0,0,0,0,0,23,18,50,33,44,52,60,41,55,50,206,206,205,205,186,45,156,153,153,144,457]} 1. d4 {[%emt 0:00:02]} Nf6 {[%emt 0:00:05]} 2. c4 {[%emt 0:00:25]} e6 {[%emt 0:00:06]} 3. Nc3 {[%emt 0:00:18]} Bb4 {[%emt 0:00:14]} 4. e3 {[%emt 0:00:12]} d5 {[%emt 0:03:52]} 5. Bd3 {[%emt 0:01:38]} O-O {[%emt 0:00:46]} 6. Nge2 {[%emt 0:00:12]} dxc4 {[%emt 0:07:03]} 7. Bxc4 {[%emt 0:00:08]} c5 {[%emt 0:00:10]} 8. a3 {[%emt 0:02:20]} cxd4 {[%emt 0:02:14]} 9. axb4 {[%emt 0:00:14]} dxc3 {[%emt 0:00:10] E48: Nimzo-Indian: Rubinstein: 5 Bd3 d5 including 6 Ne2, but excluding 6 a3.} 10. Qxd8 {[%emt 0:00:21]} ({But not} 10. bxc3 Qxd1+ 11. Kxd1 Bd7 $15) 10... Rxd8 {[%emt 0:00:13]} 11. bxc3 {[%emt 0:00:07]} Nc6 {[%emt 0:01:59] The position is equal.} 12. Nd4 {[%emt 0:00:52]} Bd7 {[%emt 0:10:06][%cal Bc8d7,Bd7c6,Bc6e8][%mdl 32]} 13. Be2 {[%emt 0:11:52] [#]} Nd5 $146 {[%emt 0:10:45]} ({Predecessor:} 13... a6 14. Nxc6 Bxc6 15. f3 Nd5 16. Bd2 b5 17. c4 bxc4 18. Bxc4 Bb5 19. Bxb5 axb5 {1-0 (43) Gutov,A (2461)-Shurjev,M (2284) Kemerovo 2010}) 14. Nxc6 {[%emt 0:10:08]} Bxc6 {[%emt 0:00:21]} 15. b5 {[%emt 0:00:04]} Be8 {[%emt 0:03:17]} 16. Bd2 {[%emt 0:00:10][%cal Bc1d2,Bd2a5,Ba5b6][%mdl 32]} a6 {[%emt 0:08:30]} 17. c4 {[%emt 0:05:27]} Nf6 {[%emt 0:01:40] aiming for ...axb5.} 18. Ba5 {[%emt 0:01:19]} axb5 {[%emt 0:01:44][%cal Ob7b6] [#] And now ...b6! would win.} 19. O-O {[%emt 0:00:07]} Rdc8 {[%emt 0:08:55]} 20. cxb5 {[%emt 0:00:14]} Rc2 {[%emt 0:06:06]} 21. Bd3 {[%emt 0:11:55]} Rb2 {[%emt 0:00:14]} 22. Bb6 {[%emt 0:03:46] This bishop pair is nice.} Rc8 {[%emt 0:13:00]} 23. Rfc1 {[%emt 0:03:47]} Rxc1+ {[%emt 0:00:59]} 24. Rxc1 {[%emt 0:00:05]} h6 {[%emt 0:05:16]} 25. h3 {[%emt 0:08:59]} e5 $2 {[%emt 0:06:13]} (25... Rb3 $14 26. Bc4 Rb4) 26. Rc8 $18 {[%emt 0:02:45]} Rb3 {[%emt 0:02:40]} 27. Bc2 {[%emt 0:07:20]} Rb2 {[%emt 0:04:18]} 28. Bd8 {[%emt 0:01:55]} ({White should play} 28. Ba7 $18) 28... Kf8 {[%emt 0:01:18] [#]} (28... Bd7 $14 29. Rb8 Rxc2 30. Bxf6+ Rc8 31. Rxc8+ (31. Rxb7 Rc1+ 32. Kh2 Bc8 $11) (31. Bxe5 Rxb8 32. Bxb8 Bxb5 $11) 31... Bxc8 32. Bxe5 Bd7) 29. Bc7 $1 $16 {[%emt 0:00:13]} Ke7 {[%emt 0:01:15]} 30. Bxe5 {[%emt 0:00:12]} Rxb5 $2 {[%emt 0:00:15][%mdl 8192] Weighted Error Value: White=0.18 (very precise) /Black=0.28 (precise)} (30... Bd7 $16) 1-0

[Event "Czech Championship 2022"]
[Site "Usti nad Labem"]
[Date "2022.05.20"]
[Round "7.18"]
[White "Paseka, Matyas"]
[Black "Sykora, Marek"]
[Result "0-1"]
[ECO "C97"]
[WhiteElo "2076"]
[BlackElo "2249"]
[Annotator "TA"]
[PlyCount "82"]
[EventDate "2022.05.12"]
[EventType "swiss"]
[EventCountry "CZE"]
[SourceTitle "playchess.com"]
[Source "ChessBase"]
[SourceQuality "1"]
[TimeControl "40/5400+30:1800+30"]

{[%evp 26,82,52,14,33,30,27,0,0,-83,-63,-61,-62,-64,-47,-51,-49,-85,-93,-116,-109,-98,-87,-107,-96,-153,-148,-168,-168,-339,-324,-312,-233,-286,-289,-357,-334,-343,-335,-386,-410,-473,-429,-406,-347,-420,-350,-492,-474,-842,-830,-1025,-1041,-1468,-1447,-1422,-1025,-1381,-1333]} 1. e4 {[%emt 0:00:05]} e5 {[%emt 0:00:29]} 2. Nf3 {[%emt 0:00:07]} Nc6 {[%emt 0:00:11]} 3. Bb5 {[%emt 0:00:07][%cal Bf1b5,Bb5a4,Ba4b3][%mdl 32]} a6 {[%emt 0:00:39]} 4. Ba4 {[%emt 0:00:07]} Nf6 {[%emt 0:00:39]} 5. O-O {[%emt 0:00:12]} Be7 {[%emt 0:00:34]} 6. Re1 {[%emt 0:00:08]} b5 {[%emt 0:00:07]} 7. Bb3 {[%emt 0:00:07]} O-O {[%emt 0:00:16]} 8. h3 {[%emt 0:00:07]} d6 {[%emt 0:00:07]} 9. c3 {[%emt 0:00:06]} Na5 {[%emt 0:00:13]} 10. Bc2 {[%emt 0:00:08]} c5 {[%emt 0:00:06]} 11. d4 {[%emt 0:00:11]} Qc7 {[%emt 0:00:08]} 12. Nbd2 {[%emt 0:00:21][%cal Bb1d2,Bd2f1,Bf1g3][%mdl 32]} Bd7 {[%emt 0:04:09]} 13. Nf1 {[%emt 0:13:00]} Rfc8 {[%emt 0:03:32]} 14. d5 {[%emt 0:01:27]} c4 {[%emt 0:02:11] C97: Closed Ruy Lopez: Chigorin Defence: 11 d4 Qc7, sidelines.} 15. Ng3 {[%emt 0:03:29]} Nb7 {[%emt 0:01:19]} 16. Nh4 {[%emt 0:07:19]} g6 {[%emt 0:05:43] [#] The position is equal.} (16... Nxd5 $2 17. exd5 g6 {[#]} 18. Nhf5 $1 {[%mdl 512]} Bxf5 19. Nxf5 $18) 17. Bg5 $146 {[%emt 0:01:15] [#]} (17. Nf3 $11) ({Predecessor:} 17. f4 Nxd5 18. Nxg6 hxg6 19. exd5 Bf6 20. f5 Kg7 21. fxg6 fxg6 22. Nh5+ gxh5 23. Qxh5 {1-0 (33) Siva,M (2349)-Jeet,J (2279) Chess.com INT 2021}) 17... Nxd5 $1 $17 {[%emt 0:06:39][%cal Bf6d5,Bd5e7,Be7c6][%mdl 32]} 18. Bxe7 {[%emt 0:08:01]} Nxe7 {[%emt 0:01:15]} 19. Qd2 {[%emt 0:00:12]} Qd8 {[%emt 0:03:49]} 20. Rad1 {[%emt 0:06:40]} Nc6 {[%emt 0:02:15]} 21. Qh6 {[%emt 0:02:26][%cal Oh4f5]} Qf8 {[%emt 0:00:50]} 22. Qg5 {[%emt 0:00:50]} f6 {[%emt 0:00:55]} 23. Qe3 {[%emt 0:00:38]} Be6 {[%emt 0:01:57]} 24. Rf1 {[%emt 0:04:01]} Qe7 {[%emt 0:01:02]} 25. Qh6 {[%emt 0:04:44]} (25. Ne2 $142) 25... Rd8 {[%emt 0:03:44]} 26. Rde1 {[%emt 0:13:14]} Nc5 {[%emt 0:02:05][%cal Bb7c5,Bc5b3,Bb3a5,Ba5c4][%mdl 32]} 27. b4 $2 {[%emt 0:31:38]} (27. f4 exf4 28. Rxf4) 27... cxb3 $19 {[%emt 0:01:34]} 28. axb3 {[%emt 0:00:04]} Qg7 {[%emt 0:02:16]} ({Avoid the trap} 28... Bxb3 $2 29. Bxb3+ Nxb3 30. Rb1 $19) 29. Qe3 {[%emt 0:00:30]} Nxb3 {[%emt 0:01:51]} ({But not} 29... Bxb3 $2 30. Bxb3+ Nxb3 31. Nf3 $19) 30. Qb6 {[%emt 0:02:27]} Nba5 {[%emt 0:01:19][%cal Oa5c4] Strongly threatening ...Nc4!} 31. Qe3 {[%emt 0:01:37]} Nc4 {[%emt 0:00:21]} 32. Qc1 {[%emt 0:00:05]} a5 {[%emt 0:00:47][%cal Ba6a5,Ba5a4][%mdl 32]} 33. f4 {[%emt 0:00:50]} exf4 {[%emt 0:01:19]} 34. Rxf4 {[%emt 0:00:10]} N6e5 {[%emt 0:02:49]} 35. Ref1 {[%emt 0:00:19]} Rf8 {[%emt 0:00:14]} ({Not} 35... g5 $2 36. Nhf5 Qa7+ 37. R4f2 Bxf5 38. Nxf5 $19) 36. Kh2 {[%emt 0:00:57]} (36. Ne2 $142) 36... a4 {[%emt 0:01:42] Hoping for ...a3. Black is clearly winning.} 37. Qa1 {[%emt 0:00:41]} (37. Nf3 $142 Nxf3+ 38. R4xf3) 37... Ne3 {[%emt 0:01:03][%csl LRc2,LRf1]} 38. R1f2 {[%emt 0:00:20]} Qh6 {[%emt 0:01:30]} 39. Qc1 {[%emt 0:00:44] [#]} N3g4+ $1 {[%emt 0:01:00][%mdl 512]} 40. hxg4 {[%emt 0:00:31]} Qxh4+ {[%emt 0:00:08]} 41. Kg1 {[%emt 0:30:17]} Qxg3 {[%emt 0:30:14] White got outplayed after the opening.  Weighted Error Value: White=0.69/Black=0.14 (very precise)} 0-1

[Event "Czech Championship 2022"]
[Site "Usti nad Labem"]
[Date "2022.05.20"]
[Round "7.19"]
[White "Sykora, Ondrej"]
[Black "Freisler, Pavel"]
[Result "0-1"]
[ECO "C50"]
[WhiteElo "2092"]
[BlackElo "2239"]
[Annotator "TA"]
[PlyCount "36"]
[EventDate "2022.05.12"]
[EventType "swiss"]
[EventCountry "CZE"]
[SourceTitle "playchess.com"]
[Source "ChessBase"]
[SourceQuality "1"]
[TimeControl "40/5400+30:1800+30"]

{[%evp 17,36,2,13,0,0,0,0,-1,0,0,-8,-10,0,-3,0,-82,-81,-176,-163,-304,-291]} 1. e4 {[%emt 0:00:03]} e5 {[%emt 0:00:23]} 2. Nf3 {[%emt 0:00:16]} Nc6 {[%emt 0:00:08]} 3. Bc4 {[%emt 0:00:08]} Bc5 {[%emt 0:00:36]} 4. Nc3 {[%emt 0:00:06]} Nf6 {[%emt 0:01:20]} 5. d3 {[%emt 0:00:04]} d6 {[%emt 0:03:14]} 6. Bg5 {[%emt 0:00:08]} h6 {[%emt 0:00:09]} 7. Bxf6 {[%emt 0:00:02]} Qxf6 {[%emt 0:00:09]} 8. Nd5 {[%emt 0:00:08]} Qd8 {[%emt 0:00:13]} 9. c3 {[%emt 0:00:03]} a6 {[%emt 0:04:45]} 10. b4 {[%emt 0:02:33] C50: Hungarian Defence and Giuoco Pianissimo.} Ba7 {[%emt 0:00:09]} 11. a4 {[%emt 0:00:04]} Ne7 {[%emt 0:02:03][%cal Bc6e7,Be7g6,Bg6f4,Bf4g2][%mdl 32]} 12. Ne3 {[%emt 0:01:02] The position is equal.} c6 {[%emt 0:07:03]} 13. O-O {[%emt 0:03:08]} O-O {[%emt 0:02:36]} 14. Bb3 {[%emt 0:01:12]} Ng6 {[%emt 0:08:10]} 15. d4 {[%emt 0:00:48]} Qf6 {[%emt 0:01:58] [#]} 16. Qd2 $146 {[%emt 0:04:54]} (16. Rb1 $11) ({Predecessor:} 16. Re1 Nf4 17. g3 exd4 18. cxd4 Nh3+ 19. Kg2 Re8 20. e5 dxe5 21. dxe5 Qe7 22. Qc2 Qxb4 {1-0 (41) Coenen,M (2294)-Winterberg,L (2282) Eupen 2014}) 16... Nf4 $17 {[%emt 0:02:18][%cal Of4g2]} 17. Kh1 {[%emt 0:06:13] [#]} (17. dxe5 $17 dxe5 18. g3) 17... Nxg2 $1 $19 {[%emt 0:02:34]} 18. Kxg2 {[%emt 0:00:39] [#]} (18. Nxg2 {is a better defense.} Qxf3 19. Qe3) 18... Bh3+ $1 {[%emt 0:00:10][%mdl 576] Decoy.  Weighted Error Value: White=0.38/Black=0.02 (flawless)} 0-1

[Event "Czech Championship 2022"]
[Site "Usti nad Labem"]
[Date "2022.05.20"]
[Round "7.20"]
[White "Nytra, Ondrej"]
[Black "Bartos, Jan"]
[Result "1/2-1/2"]
[ECO "C02"]
[WhiteElo "2219"]
[BlackElo "2125"]
[Annotator "TA"]
[PlyCount "65"]
[EventDate "2022.05.12"]
[EventType "swiss"]
[EventCountry "CZE"]
[SourceTitle "playchess.com"]
[Source "ChessBase"]
[SourceQuality "1"]
[TimeControl "40/5400+30:1800+30"]

{[%evp 21,65,0,22,0,-6,0,11,-7,0,0,427,0,0,0,6,0,1,-4,0,-33,0,-11,60,32,24,0,0,0,0,0,0,0,0,0,0,-18,0,0,0,0,0,0,0,0,0,0]} 1. e4 {[%emt 0:00:03]} e6 {[%emt 0:00:04]} 2. d4 {[%emt 0:00:02]} d5 {[%emt 0:00:04]} 3. e5 {[%emt 0:00:02]} c5 {[%emt 0:00:05]} 4. c3 {[%emt 0:00:02]} Nc6 {[%emt 0:00:06]} 5. Nf3 {[%emt 0:00:02]} Qb6 {[%emt 0:00:05]} 6. a3 {[%emt 0:00:02]} Bd7 {[%emt 0:00:14]} 7. b4 {[%emt 0:00:11]} cxd4 {[%emt 0:00:06]} 8. cxd4 {[%emt 0:00:02]} Rc8 {[%emt 1:33:46]} 9. Be3 {[%emt 0:04:33]} Nh6 {[%emt 0:00:00]} 10. Bd3 {[%emt 0:00:41]} Ng4 {[%emt 0:00:00]} 11. O-O {[%emt 0:02:25]} Be7 {[%emt 0:00:00]} 12. Ra2 {[%emt 0:00:55] C02: French: Advance Variation.} Nxe3 {[%emt 0:00:00]} 13. fxe3 {[%emt 0:04:29]} Nb8 {[#]} 14. Raf2 $146 {[%emt 0:01:23]} ({Predecessor:} 14. b5 a6 15. a4 Qa5 16. Qe2 O-O 17. g4 Rc7 18. h4 Rfc8 19. g5 Rc1 20. Rxc1 Rxc1+ {0-1 (50) Egorov,E (2380)-Sambuev,B (2490) Voronezh 2004}) 14... Bb5 {[%emt 0:00:00]} 15. Ne1 Bd7 $2 {[%emt 0:00:00][%mdl 8192] [#]} (15... O-O $11 {and Black is okay.}) 16. Nf3 $2 {[%emt 0:01:00]} (16. Rxf7 $18 Kd8 17. Rxg7) 16... Bb5 {[%emt 0:00:00]} 17. Ne1 {[%emt 0:00:30]} Bxd3 {[%emt 0:00:00]} 18. Nxd3 {[%emt 1:23:08]} O-O {[%emt 0:00:00]} 19. Qg4 {[%emt 0:00:00]} (19. Qh5 $5 {[%cal Rf2f7]}) 19... Nd7 {[%emt 0:00:00]} 20. Nf4 {[%cal Of4d5]} f5 {[%emt 0:00:00]} 21. exf6 {[%emt 0:00:00]} Rxf6 {[%emt 0:00:00] [#]} (21... Nxf6 $11 22. Qxe6+ Qxe6 23. Nxe6 Rfe8) 22. Nxd5 $1 {[%emt 0:02:00]} exd5 {[%emt 0:00:00]} 23. Qxd7 {[%emt 0:00:00]} Qe6 {[%emt 0:00:00] The position is equal.} 24. Qxe6+ {[%emt 0:00:00]} Rxe6 {[%emt 0:08:00]} 25. Re1 {[%emt 0:00:00]} Bg5 {[%emt 0:00:00]} 26. Rfe2 {[%emt 0:00:00]} Rce8 {[%emt 0:00:00][%cal Rg5e3]} 27. Kf2 {[%emt 0:00:00]} Rf8+ {[%emt 0:01:30]} 28. Kg3 {[%emt 0:00:00]} (28. Kg1 $5 {[%cal Rb1c3]}) 28... Rg6 {[%emt 0:00:00][%mdl 1024] Black has compensation.} 29. Kh3 $1 {[%emt 0:00:00]} ({Wrong is} 29. Nc3 $2 Bxe3+ 30. Kh3 Rh6+ 31. Kg4 Bf2 32. Rxf2 Rg6+ 33. Kh3 Rxf2 $19) 29... Rh6+ {[%emt 0:00:00]} 30. Kg4 {[%emt 0:00:00]} Rg6 {[%emt 0:00:00]} 31. Kh3 {[%emt 0:00:00]} ({But not} 31. Nc3 $2 Bxe3+ 32. Kh3 Rh6+ 33. Kg4 Bf2 34. Rxf2 Rg6+ 35. Kh3 Rxf2 $19) 31... Rh6+ {[%emt 0:00:00]} 32. Kg4 {[%emt 0:00:00]} Rg6 {[%emt 0:00:00]} 33. Kh3 {[%emt 0:05:30] Weighted Error Value: White=0.35/Black=0.50} ({Not} 33. Nc3 $2 Bxe3+ 34. Kh3 Rh6+ 35. Kg4 Bf2 $19) 1/2-1/2